bitfinex/quotes_BTCUSD_20240731
["timestamp","ask_amount","ask_price","bid_price","bid_amount"]
[1722449764069,0.07476412,66544.0,66538.0,0.150289]
[1722449764070,0.22504112,66544.0,66538.0,0.150289]
[1722449764294,0.301372,66547.0,66535.0,0.30359663]
[1722449764295,0.00083,66547.0,66535.0,0.00300563]
[1722449764504,0.00083,66547.0,66524.0,0.012]
[1722449764505,0.00083,66547.0,66544.0,0.150275]
[1722449764725,0.00083,66547.0,66543.0,0.150277]
[1722449764931,0.00083,66547.0,66537.0,0.300583]
[1722449765183,0.07476412,66546.0,66536.0,0.0792]
[1722449765400,0.07476412,66545.0,66537.0,0.00082998]
[1722449765624,0.00083,66547.0,66527.0,0.00455965]
[1722449765835,0.00083,66547.0,66546.0,0.150271]
[1722449766037,0.00083,66547.0,66540.0,0.30057]
[1722449766242,0.03240495,66547.0,66546.0,0.450814]
[1722449766517,0.03240495,66547.0,66544.0,0.300548]
[1722449766518,0.03240495,66547.0,66545.0,0.150274]
[1722449766732,0.150273,66546.0,66541.0,0.0821]
[1722449766934,0.150273,66546.0,66542.0,0.00082998]
[1722449767136,0.02440495,66547.0,66542.0,0.00082998]
[1722449767345,0.02440495,66547.0,66543.0,0.300555]
[1722449767553,0.02440495,66547.0,66544.0,0.450826]
[1722449767757,0.02440495,66547.0,66544.0,0.300552]
[1722449767927,0.02440495,66547.0,66545.0,0.150274]
[1722449768146,0.02440495,66547.0,66545.0,0.150272]
[1722449768352,0.00083,66547.0,66544.0,0.300552]
[1722449768565,0.00083,66547.0,66545.0,0.150273]
[1722449768737,0.00083,66547.0,66546.0,0.150271]
[1722449769356,0.00083,66547.0,66543.0,0.150277]
[1722449769556,0.00083,66547.0,66540.0,0.300568]
[1722449769557,0.00083,66547.0,66544.0,0.150276]
[1722449769757,0.00083,66547.0,66546.0,0.150271]
[1722449770093,0.00083,66547.0,66545.0,0.150273]
[1722449770502,0.00083,66547.0,66546.0,0.150271]
[1722449770675,0.00083,66547.0,66544.0,0.300552]
[1722449770882,0.00083,66547.0,66534.0,0.1472]
[1722449771082,0.00083,66547.0,66535.0,0.27446639]
[1722449771290,0.1511,66547.0,66541.0,0.150282]
[1722449771497,0.150284,66541.0,66528.0,0.0787]
[1722449771697,0.09833866,66545.0,66533.0,0.1503]
[1722449771698,0.300558,66543.0,66533.0,0.1503]
[1722449771859,0.02357454,66545.0,66540.0,0.150284]
[1722449772307,0.02357454,66545.0,66543.0,0.150278]
[1722449772510,0.00083,66547.0,66546.0,0.150271]
[1722449772713,0.00083,66547.0,66546.0,0.75436211]
[1722449772912,0.00083,66547.0,66546.0,1.05490511]
[1722449773116,0.00083,66547.0,66546.0,1.17980092]
[1722449773325,0.00083,66547.0,66546.0,1.17980398]
[1722449773522,0.00083,66547.0,66546.0,0.75436211]
[1722449773722,0.00183,66547.0,66546.0,0.75436211]
[1722449774340,0.00083,66547.0,66546.0,0.75436211]
[1722449774545,0.00083,66547.0,66546.0,0.76136211]
[1722449774546,0.00183,66547.0,66546.0,0.76136211]
[1722449775142,0.152099,66547.0,66546.0,0.007]
[1722449775345,0.452638,66547.0,66546.0,0.007]
[1722449775501,0.753177,66547.0,66546.0,0.007]
[1722449776122,0.152099,66547.0,66546.0,0.007]
[1722449776320,0.152099,66547.0,66528.0,0.7982]
[1722449776321,0.450889,66535.0,66528.0,0.7982]
[1722449776524,0.450889,66535.0,66514.0,0.0727048]
[1722449776525,0.59514672,66535.0,66517.0,0.0799]
[1722449776732,0.59514672,66535.0,66514.0,0.4715]
[1722449776733,0.07476412,66528.0,66514.0,0.4715]
[1722449776940,0.300644,66524.0,66514.0,0.4715]
[1722449777218,0.300669,66519.0,66514.0,0.4715]
[1722449777425,0.300644,66524.0,66515.0,0.150341]
[1722449777558,0.07476412,66521.0,66510.0,0.0799]
[1722449777737,0.150344,66514.0,66509.0,1e-06]
[1722449777955,0.15034,66516.0,66510.0,0.150353]
[1722449778153,0.300676,66517.0,66509.0,1e-06]
[1722449778587,0.1488,66520.0,66509.0,1e-06]
[1722449778801,0.150338,66517.0,66510.0,0.150351]
[1722449779005,0.1488,66520.0,66510.0,0.300706]
[1722449779222,0.150342,66515.0,66509.0,0.150354]
[1722449779606,0.150349,66512.0,66509.0,1e-06]
[1722449779825,0.1488,66520.0,66509.0,1e-06]
[1722449779826,0.300678,66517.0,66509.0,1e-06]
[1722449780233,0.1488,66520.0,66509.0,1e-06]
[1722449780234,0.150346,66513.0,66509.0,1e-06]
[1722449780524,0.001,66515.0,66512.0,0.150347]
[1722449780725,0.001,66515.0,66509.0,1e-06]
[1722449781062,0.451041,66513.0,66509.0,1e-06]
[1722449781260,0.001,66515.0,66509.0,1e-06]
[1722449781684,0.300669,66519.0,66509.0,1e-06]
[1722449781885,0.150353,66510.0,66509.0,1e-06]
[1722449782086,0.751765,66510.0,66509.0,0.001001]
[1722449782287,0.006,66513.0,66509.0,0.001001]
[1722449782493,0.006,66513.0,66509.0,0.151356]
[1722449782706,0.0663,66520.0,66509.0,1e-06]
[1722449782707,0.300671,66518.0,66509.0,1e-06]
[1722449782921,0.0663,66520.0,66512.0,0.150348]
[1722449782922,0.005,66519.0,66512.0,0.150348]
[1722449783194,0.005,66519.0,66518.0,0.150335]
[1722449783423,0.064,66528.0,66516.0,0.300678]
[1722449783424,0.364626,66528.0,66516.0,0.300678]
[1722449783657,0.214313,66528.0,66517.0,0.00300644]
[1722449783885,0.3784,66534.0,66518.0,0.14955172]
[1722449783886,0.1429,66534.0,66518.0,0.14955172]
[1722449784113,0.150295,66536.0,66529.0,0.150309]
[1722449784349,0.15029,66538.0,66531.0,0.150304]
[1722449784598,0.15029,66538.0,66520.0,0.2689]
[1722449784599,0.0651,66540.0,66536.0,0.150293]
[1722449784839,0.0651,66540.0,66526.0,0.0626]
[1722449784840,0.0651,66540.0,66527.0,0.08240589]
[1722449785072,0.150292,66537.0,66531.0,0.150304]
[1722449785292,0.150291,66538.0,66530.0,0.300613]
[1722449785570,0.365671,66540.0,66531.0,0.150304]
[1722449785830,0.365671,66540.0,66527.0,0.0794]
[1722449786056,0.150291,66538.0,66530.0,0.300613]
[1722449786277,0.150296,66536.0,66530.0,0.150307]
[1722449786472,0.153292,66537.0,66531.0,0.150305]
[1722449786679,0.365671,66540.0,66529.0,0.150308]
[1722449786879,0.300586,66537.0,66529.0,0.150309]
[1722449787092,0.150301,66533.0,66527.0,0.229714]
[1722449787297,0.07476412,66536.0,66527.0,0.0794]
[1722449787298,0.150299,66534.0,66527.0,0.0794]
[1722449787518,0.150299,66534.0,66528.0,0.150311]
[1722449787727,0.07476412,66536.0,66529.0,0.15031]
[1722449787728,0.22506012,66536.0,66529.0,0.15031]
[1722449787928,0.150297,66535.0,66529.0,0.15031]
[1722449788376,0.07476412,66536.0,66527.0,0.380029]
[1722449788567,0.22505912,66536.0,66530.0,0.150306]
[1722449789127,0.22505912,66536.0,66531.0,0.150305]
[1722449789348,0.0701,66540.0,66527.0,0.0794]
[1722449789550,0.0621,66545.0,66529.0,0.00300589]
[1722449789796,0.0772,66550.0,66542.0,0.150278]
[1722449789797,0.150267,66548.0,66542.0,0.150278]
[1722449790003,0.300544,66546.0,66537.0,0.00300554]
[1722449790242,0.07476412,66545.0,66530.0,0.14955172]
[1722449790453,0.150288,66539.0,66533.0,0.1503]
[1722449790657,0.150288,66539.0,66529.0,0.363317]
[1722449790658,0.07476412,66538.0,66529.0,0.0627]
[1722449790879,0.07476412,66538.0,66514.0,0.67350885]
[1722449790880,0.07476412,66531.0,66521.0,0.0754]
[1722449791085,0.07476412,66531.0,66519.0,0.300661]
[1722449791275,0.150312,66528.0,66518.0,0.300669]
[1722449791454,0.07476412,66531.0,66517.0,0.0763]
[1722449791455,0.450951,66526.0,66517.0,0.0763]
[1722449791656,0.0625,66537.0,66517.0,0.0763]
[1722449791657,0.0625,66537.0,66522.0,0.150325]
[1722449791899,0.0625,66537.0,66518.0,0.300669]
[1722449791900,0.150319,66525.0,66518.0,0.300669]
[1722449792106,0.150322,66524.0,66518.0,0.150333]
[1722449792306,0.17152813,66536.0,66517.0,0.0763]
[1722449792486,0.300654,66522.0,66514.0,0.150342]
[1722449792683,0.300654,66522.0,66513.0,0.621846]
[1722449792684,0.150333,66519.0,66513.0,0.621846]
[1722449792852,0.063,66522.0,66513.0,0.621846]
[1722449792853,0.063,66522.0,66515.0,0.150341]
[1722449793211,0.150329,66521.0,66518.0,0.003]
[1722449793359,0.213327,66522.0,66518.0,0.003]
[1722449793570,0.300657,66521.0,66518.0,0.003]
[1722449793781,0.450997,66519.0,66518.0,0.003]
[1722449794135,0.150332,66519.0,66518.0,0.003]
[1722449794339,0.150332,66519.0,66513.0,0.621846]
[1722449794767,0.001,66519.0,66513.0,0.4815]
[1722449794972,0.151334,66519.0,66513.0,0.631846]
[1722449795173,0.15034,66516.0,66513.0,0.01]
[1722449795372,0.150335,66518.0,66513.0,0.01]
[1722449795582,0.151333,66519.0,66513.0,0.160345]
[1722449795794,0.151333,66519.0,66514.0,0.150343]
[1722449796006,0.150338,66517.0,66511.0,0.150349]
[1722449796268,0.063,66522.0,66516.0,0.150338]
[1722449796439,0.063,66522.0,66515.0,0.150342]
[1722449796440,0.001,66516.0,66515.0,0.150342]
[1722449796874,0.001,66516.0,66515.0,0.451026]
[1722449797218,0.001,66516.0,66515.0,0.82791]
[1722449797440,0.001,66516.0,66515.0,0.88791]
[1722449797680,0.150313,66528.0,66522.0,0.150325]
[1722449797888,0.15032,66525.0,66520.0,0.15033]
[1722449798086,0.300623,66529.0,66515.0,0.1362]
[1722449798087,0.150325,66523.0,66517.0,0.150335]
[1722449798320,0.07476412,66521.0,66511.0,0.012]
[1722449798505,0.1394,66527.0,66508.0,0.0762]
[1722449798734,0.150347,66513.0,66508.0,0.0762]
[1722449798862,0.300686,66515.0,66504.0,0.4715]
[1722449799062,0.300693,66513.0,66504.0,0.4715]
[1722449799448,0.150353,66510.0,66504.0,0.621865]
[1722449799620,0.150347,66513.0,66505.0,0.300728]
[1722449799825,0.150347,66513.0,66508.0,0.150357]
[1722449800031,0.300673,66518.0,66507.0,0.300717]
[1722449800233,0.150342,66515.0,66511.0,0.008]
[1722449800386,0.001,66521.0,66511.0,0.008]
[1722449800387,0.300682,66516.0,66511.0,0.008]
[1722449800759,0.150346,66514.0,66511.0,0.008]
[1722449801113,0.150341,66516.0,66511.0,0.008]
[1722449801312,0.300668,66519.0,66509.0,1e-06]
[1722449801514,0.30068,66516.0,66509.0,0.150355]
[1722449801713,0.001,66513.0,66510.0,0.150352]
[1722449802138,0.150342,66515.0,66510.0,0.150352]
[1722449802351,0.150347,66513.0,66509.0,1e-06]
[1722449802600,0.005,66519.0,66509.0,1e-06]
[1722449802923,0.1,66525.0,66509.0,1e-06]
[1722449802924,0.150345,66514.0,66509.0,1e-06]
[1722449803123,0.300685,66515.0,66509.0,1e-06]
[1722449803328,0.001,66515.0,66509.0,1e-06]
[1722449803530,0.150352,66511.0,66509.0,1e-06]
[1722449804142,0.150351,66511.0,66509.0,1e-06]
[1722449804344,0.751765,66510.0,66509.0,1e-06]
[1722449804582,0.150353,66510.0,66509.0,1e-06]
[1722449805814,0.451059,66510.0,66509.0,0.005001]
[1722449806366,0.47464658,66510.0,66509.0,1e-06]
[1722449806748,0.17394058,66510.0,66509.0,1e-06]
[1722449807948,0.17494058,66510.0,66509.0,1e-06]
[1722449808149,0.02458758,66510.0,66509.0,1e-06]
[1722449808735,0.17494058,66510.0,66509.0,1e-06]
[1722449809107,0.17394058,66510.0,66509.0,1e-06]
[1722449809308,0.150351,66511.0,66509.0,1e-06]
[1722449809482,0.300695,66513.0,66509.0,1e-06]
[1722449809483,0.150349,66512.0,66509.0,1e-06]
[1722449809744,0.24955172,66525.0,66513.0,0.150346]
[1722449809745,0.150333,66519.0,66513.0,0.150346]
[1722449809956,0.0604,66532.0,66514.0,0.15255823]
[1722449810163,0.44858472,66531.0,66515.0,0.0015542]
[1722449810373,0.15032,66525.0,66519.0,0.150332]
[1722449810578,0.15032,66525.0,66518.0,0.300668]
[1722449810779,0.0604,66532.0,66517.0,0.150336]
[1722449810780,0.150325,66523.0,66517.0,0.150336]
[1722449811059,0.0604,66532.0,66511.0,0.772201]
[1722449811060,0.0604,66532.0,66511.0,0.62185]
[1722449811273,0.16360172,66531.0,66517.0,0.150337]
[1722449811496,0.150326,66522.0,66515.0,0.300681]
[1722449811709,0.0604,66532.0,66519.0,0.300664]
[1722449811911,0.150322,66524.0,66519.0,0.150332]
[1722449812060,0.361007,66532.0,66519.0,0.300665]
[1722449812061,0.0604,66532.0,66519.0,0.300665]
[1722449812241,0.150319,66525.0,66520.0,0.15033]
[1722449812465,0.02358322,66523.0,66520.0,0.15033]
[1722449812662,0.300621,66529.0,66518.0,0.300668]
[1722449812867,0.0704,66532.0,66519.0,0.15255812]
[1722449812868,0.01,66532.0,66519.0,0.15255812]
[1722449813064,0.1,66534.0,66519.0,0.15255812]
[1722449813065,0.150301,66533.0,66527.0,0.150314]
[1722449813332,0.150301,66533.0,66527.0,0.150312]
[1722449813469,0.150307,66531.0,66526.0,0.150316]
[1722449813830,0.1,66534.0,66527.0,0.150314]
[1722449813967,0.150303,66532.0,66527.0,0.150314]
[1722449814170,0.150306,66531.0,66522.0,0.30065]
[1722449814377,0.150311,66529.0,66523.0,0.150323]
[1722449814592,0.150311,66529.0,66524.0,0.150321]
[1722449814803,0.157304,66532.0,66526.0,0.150316]
[1722449815007,0.150308,66530.0,66522.0,0.30065]
[1722449815233,0.150306,66531.0,66525.0,0.150319]
[1722449815436,0.150301,66533.0,66527.0,0.150313]
[1722449815649,0.004,66531.0,66524.0,0.15032]
[1722449815848,0.004,66531.0,66529.0,0.15031]
[1722449816053,0.004,66531.0,66529.0,0.150309]
[1722449816255,0.364187,66537.0,66530.0,0.150306]
[1722449816453,0.364187,66537.0,66523.0,0.363247]
[1722449816454,0.150294,66536.0,66531.0,0.150305]
[1722449816680,0.476369,66541.0,66525.0,0.300638]
[1722449816681,0.30058,66538.0,66525.0,0.300638]
[1722449816877,0.30058,66538.0,66524.0,0.00300609]
[1722449816878,0.1503,66534.0,66529.0,0.150308]
[1722449817130,0.365665,66542.0,66523.0,0.300646]
[1722449817131,0.300602,66533.0,66523.0,0.300646]
[1722449817317,0.300602,66533.0,66526.0,0.150317]
[1722449817318,0.150307,66531.0,66526.0,0.150317]
[1722449817517,0.150307,66531.0,66524.0,0.300641]
[1722449817518,0.154307,66531.0,66524.0,0.300641]
[1722449817677,0.154307,66531.0,66526.0,0.150316]
[1722449817882,0.004,66531.0,66526.0,0.150316]
[1722449818091,0.300602,66533.0,66527.0,0.150314]
[1722449818092,0.150301,66533.0,66527.0,0.150314]
[1722449818298,0.150301,66533.0,66528.0,0.150312]
[1722449818529,0.150302,66533.0,66527.0,0.150313]
[1722449818767,0.153302,66533.0,66527.0,0.150313]
[1722449819216,0.150307,66531.0,66526.0,0.150316]
[1722449819620,0.303605,66533.0,66525.0,0.150317]
[1722449819838,0.150306,66531.0,66526.0,0.150316]
[1722449820740,0.150308,66530.0,66525.0,0.150318]
[1722449821301,0.150306,66531.0,66526.0,0.150316]
[1722449821500,0.150306,66531.0,66522.0,0.0832]
[1722449821501,0.150308,66530.0,66525.0,0.150318]
[1722449821864,0.300606,66533.0,66523.0,0.300644]
[1722449822064,0.150308,66530.0,66525.0,0.150318]
[1722449822426,0.300609,66532.0,66524.0,0.15032]
[1722449822598,0.150311,66529.0,66525.0,0.00093927]
[1722449822799,0.150308,66530.0,66525.0,0.152319]
[1722449823419,0.07476412,66533.0,66525.0,0.002]
[1722449823628,0.0657,66528.0,66525.0,0.002]
[1722449823985,0.150315,66527.0,66525.0,0.002]
[1722449824116,0.150319,66525.0,66520.0,0.150329]
[1722449824477,0.1412,66533.0,66510.0,0.0797]
[1722449824719,0.26367172,66532.0,66512.0,0.1519022]
[1722449824916,0.26367172,66532.0,66524.0,0.001]
[1722449824917,0.27267172,66532.0,66524.0,0.001]
[1722449825068,0.751595,66525.0,66524.0,0.001]
[1722449825271,1.052233,66525.0,66524.0,0.001]
[1722449825487,0.150328,66521.0,66516.0,0.150339]
[1722449825689,0.15033,66520.0,66515.0,0.150341]
[1722449825886,0.300663,66520.0,66512.0,0.300697]
[1722449826105,0.150333,66519.0,66514.0,0.150343]
[1722449826525,0.30065,66523.0,66513.0,0.300692]
[1722449826744,0.150333,66519.0,66514.0,0.150344]
[1722449826947,0.02358383,66518.0,66515.0,0.150341]
[1722449827341,0.02358383,66518.0,66510.0,0.0797]
[1722449827545,0.02358383,66518.0,66509.0,1e-06]
[1722449827546,0.082,66517.0,66509.0,1e-06]
[1722449827748,0.15035,66512.0,66509.0,1e-06]
[1722449828158,0.150346,66513.0,66509.0,1e-06]
[1722449828562,0.150343,66515.0,66510.0,0.150352]
[1722449828962,0.001,66512.0,66509.0,0.150356]
[1722449829170,0.001,66512.0,66509.0,1e-06]
[1722449829378,0.001,66512.0,66511.0,1.052457]
[1722449829583,0.001,66512.0,66511.0,1.47546793]
[1722449829828,0.001,66512.0,66511.0,1.77616993]
[1722449830057,0.001,66512.0,66511.0,1.78816993]
[1722449830272,0.001,66512.0,66511.0,1.78616993]
[1722449830483,0.300614,66531.0,66511.0,0.42301093]
[1722449830693,0.44858472,66534.0,66526.0,0.150316]
[1722449830694,0.74918472,66534.0,66526.0,0.150316]
[1722449830903,0.150304,66532.0,66527.0,0.150314]
[1722449831135,0.300581,66538.0,66515.0,0.2153]
[1722449831350,0.1,66537.0,66529.0,0.150309]
[1722449831565,0.00083,66547.0,66516.0,0.22705172]
[1722449831566,0.02358061,66531.0,66516.0,0.22705172]
[1722449831767,0.02358061,66531.0,66517.0,0.1249481]
[1722449831981,0.02358061,66531.0,66518.0,0.14955172]
[1722449832188,0.150302,66533.0,66524.0,0.300642]
[1722449832405,0.150303,66532.0,66527.0,0.150314]
[1722449832629,0.150303,66532.0,66516.0,0.0775]
[1722449832630,0.07476412,66530.0,66516.0,0.0775]
[1722449832846,0.07476412,66530.0,66511.0,0.014]
[1722449832847,0.07476412,66523.0,66511.0,0.014]
[1722449833060,0.150348,66512.0,66511.0,0.014]
[1722449833263,0.451045,66512.0,66511.0,0.014]
[1722449833698,0.451059,66510.0,66509.0,1e-06]
[1722449833919,0.751765,66510.0,66509.0,1e-06]
[1722449834547,1.052471,66510.0,66509.0,1e-06]
[1722449835218,1.07605899,66510.0,66509.0,1e-06]
[1722449835420,1.055471,66510.0,66509.0,1e-06]
[1722449837314,1.052471,66510.0,66509.0,1e-06]
[1722449837545,1.1719881,66510.0,66509.0,1e-06]
[1722449837782,1.055471,66510.0,66509.0,1e-06]
[1722449838626,1.0790597,66510.0,66509.0,1e-06]
[1722449839894,1.055471,66510.0,66509.0,1e-06]
[1722449840773,1.56682872,66510.0,66509.0,1e-06]
[1722449840974,1.66682872,66510.0,66509.0,1e-06]
[1722449841184,1.74682872,66510.0,66509.0,1e-06]
[1722449841410,1.89631002,66510.0,66509.0,1e-06]
[1722449841830,1.74382872,66510.0,66509.0,1e-06]
[1722449842037,1.44312272,66510.0,66509.0,1e-06]
[1722449842238,1.45112272,66510.0,66509.0,0.001001]
[1722449842447,0.559059,66510.0,66509.0,0.001001]
[1722449842891,0.759765,66510.0,66509.0,0.001001]
[1722449843325,0.78335423,66510.0,66509.0,0.001001]
[1722449844112,1.08406023,66510.0,66509.0,0.001001]
[1722449844351,1.060471,66510.0,66509.0,0.001001]
[1722449844989,1.1727981,66510.0,66509.0,0.001001]
[1722449845448,1.060471,66510.0,66509.0,0.001001]
[1722449847633,1.0840613,66510.0,66509.0,0.001001]
[1722449847959,1.060471,66510.0,66509.0,0.001001]
[1722449850181,1.65052872,66510.0,66509.0,0.001001]
[1722449850386,2.06123472,66510.0,66509.0,0.001001]
[1722449850572,2.25371502,66510.0,66509.0,0.001001]
[1722449850975,2.277308,66510.0,66509.0,0.001001]
[1722449851849,0.029999,66505.0,66500.0,0.000913]
[1722449852048,2.17762284,66501.0,66500.0,0.000913]
[1722449852268,2.32162284,66501.0,66500.0,0.000913]
[1722449852579,2.11905504,66501.0,66500.0,0.000913]
[1722449852780,2.03611272,66501.0,66500.0,0.000913]
[1722449853503,1.76691272,66501.0,66500.0,0.000913]
[1722449853701,1.91639402,66501.0,66500.0,0.000913]
[1722449854143,1.93039402,66501.0,66500.0,0.000913]
[1722449855320,1.93954512,66501.0,66500.0,0.000913]
[1722449855523,1.96314066,66501.0,66500.0,0.000913]
[1722449855765,1.93954512,66501.0,66500.0,0.000913]
[1722449855991,2.24729112,66501.0,66500.0,0.000913]
[1722449856196,2.27029112,66501.0,66500.0,1e-06]
[1722449857329,1.78606282,66501.0,66500.0,1e-06]
[1722449857528,1.80006282,66501.0,66500.0,1e-06]
[1722449857891,1.78606282,66501.0,66500.0,1e-06]
[1722449858297,1.80006282,66501.0,66500.0,1e-06]
[1722449859245,1.38991239,66501.0,66500.0,1e-06]
[1722449859447,1.22531682,66501.0,66500.0,1e-06]
[1722449859602,1.21131682,66501.0,66500.0,1e-06]
[1722449859805,1.3385085,66501.0,66500.0,1e-06]
[1722449860006,1.3525085,66501.0,66500.0,1e-06]
[1722449860411,1.3385085,66501.0,66500.0,1e-06]
[1722449860850,1.3433574,66501.0,66500.0,1e-06]
[1722449861258,1.4433574,66501.0,66500.0,1e-06]
[1722449861850,0.865867,66501.0,66500.0,1e-06]
[1722449862077,1.01541872,66501.0,66500.0,1e-06]
[1722449862239,1.31616572,66501.0,66500.0,1e-06]
[1722449862436,1.33975942,66501.0,66500.0,1e-06]
[1722449862654,1.41336542,66501.0,66500.0,1e-06]
[1722449862874,1.56284672,66501.0,66500.0,1e-06]
[1722449864796,1.34906542,66501.0,66500.0,1e-06]
[1722449870682,0.875173,66501.0,66500.0,1e-06]
[1722449870841,0.574426,66501.0,66500.0,1e-06]
[1722449871051,0.023306,66501.0,66500.0,0.296276]
[1722449871267,0.023306,66501.0,66500.0,0.897778]
[1722449871268,0.014,66501.0,66500.0,0.897778]
[1722449871439,0.014,66501.0,66500.0,1.17232745]
[1722449871633,0.014,66501.0,66500.0,1.47307845]
[1722449872084,0.014,66501.0,66500.0,1.77382945]
[1722449872372,0.014,66501.0,66500.0,1.47307845]
[1722449872755,0.44858472,66517.0,66515.0,0.0601]
[1722449872969,0.44858472,66517.0,66516.0,0.0803]
[1722449873179,0.300656,66522.0,66516.0,0.0803]
[1722449873303,0.150332,66520.0,66517.0,0.0015542]
[1722449873512,0.150333,66519.0,66517.0,0.0015542]
[1722449873713,0.300634,66526.0,66517.0,0.0015542]
[1722449873914,0.300635,66526.0,66517.0,0.0015542]
[1722449874169,0.300664,66520.0,66517.0,0.0015542]
[1722449874363,0.150335,66518.0,66517.0,0.0015542]
[1722449874738,0.150337,66517.0,66516.0,0.0803]
[1722449875147,0.451012,66517.0,66516.0,0.0723]
[1722449875353,0.150334,66519.0,66516.0,0.0723]
[1722449875613,0.150335,66518.0,66516.0,0.0723]
[1722449875817,0.150336,66518.0,66516.0,0.0723]
[1722449876041,0.003,66519.0,66517.0,0.0015542]
[1722449876260,0.30063,66527.0,66517.0,0.0015542]
[1722449876261,0.002,66520.0,66517.0,0.3022272]
[1722449876674,0.150322,66524.0,66518.0,0.150334]
[1722449876675,0.003,66519.0,66518.0,0.150334]
[1722449876840,0.30063,66527.0,66518.0,0.150334]
[1722449876841,0.250324,66523.0,66518.0,0.1518882]
[1722449877232,0.003,66519.0,66518.0,0.1518882]
[1722449877466,0.360858,66532.0,66518.0,0.1518882]
[1722449877467,0.300593,66536.0,66518.0,0.300669]
[1722449877614,0.59813644,66535.0,66522.0,0.30065]
[1722449877819,0.59813644,66535.0,66523.0,0.150322]
[1722449877820,0.14955172,66535.0,66523.0,0.150322]
[1722449878030,0.150306,66531.0,66525.0,0.150318]
[1722449878241,0.150306,66531.0,66524.0,0.150321]
[1722449878242,0.15031,66529.0,66524.0,0.150321]
[1722449878458,0.150296,66536.0,66527.0,0.150313]
[1722449878668,0.150309,66530.0,66528.0,0.0015542]
[1722449878893,0.14955172,66538.0,66528.0,0.0015542]
[1722449878894,0.15031,66529.0,66528.0,0.0015542]
[1722449879115,0.150312,66528.0,66527.0,0.0015542]
[1722449879320,0.300614,66531.0,66527.0,0.0015542]
[1722449879554,0.14955172,66538.0,66527.0,0.0015542]
[1722449879776,0.150306,66531.0,66527.0,0.0015542]
[1722449879972,0.14955172,66538.0,66526.0,0.229316]
[1722449879973,0.013,66529.0,66526.0,0.079]
[1722449880183,0.751562,66528.0,66527.0,0.0015542]
[1722449880399,0.751562,66528.0,66525.0,0.0015542]
[1722449880400,0.150317,66526.0,66525.0,0.0015542]
[1722449880639,0.300625,66528.0,66525.0,0.1518732]
[1722449880640,0.02358159,66528.0,66525.0,0.1518732]
[1722449880880,0.02358159,66528.0,66527.0,0.450943]
[1722449881097,0.02358159,66528.0,66527.0,0.150314]
[1722449881296,0.02358159,66528.0,66523.0,0.300646]
[1722449881508,0.02358159,66528.0,66522.0,0.06820621]
[1722449881713,0.02358159,66528.0,66527.0,0.526543]
[1722449881924,0.02358159,66528.0,66527.0,0.97672372]
[1722449882124,0.012,66531.0,66527.0,0.97672372]
[1722449882125,0.019,66531.0,66529.0,0.150308]
[1722449882341,0.019,66531.0,66527.0,0.377229]
[1722449882342,0.019,66531.0,66527.0,0.0766]
[1722449882545,0.15031,66529.0,66527.0,0.0766]
[1722449882758,0.012,66531.0,66527.0,0.0756]
[1722449882970,0.300607,66532.0,66527.0,0.0786]
[1722449882971,0.15031,66529.0,66527.0,0.0786]
[1722449883213,0.300571,66540.0,66527.0,0.0786]
[1722449883457,0.001,66528.0,66527.0,0.0756]
[1722449883909,0.150308,66530.0,66527.0,0.0756]
[1722449884123,0.300609,66532.0,66527.0,0.225914]
[1722449884124,0.150304,66532.0,66527.0,0.225914]
[1722449884335,0.150301,66533.0,66528.0,0.150311]
[1722449884540,0.150304,66532.0,66527.0,0.227914]
[1722449884743,0.150301,66533.0,66528.0,0.150311]
[1722449885115,0.300585,66537.0,66528.0,0.300623]
[1722449885300,0.150293,66537.0,66532.0,0.150303]
[1722449885543,0.150293,66537.0,66530.0,0.300615]
[1722449885544,0.150293,66537.0,66531.0,0.150304]
[1722449885758,0.300576,66539.0,66532.0,0.150303]
[1722449885759,0.15029,66538.0,66532.0,0.150303]
[1722449885890,0.002,66533.0,66532.0,0.150303]
[1722449886088,0.1,66537.0,66534.0,0.00082998]
[1722449886364,0.1,66537.0,66534.0,0.300597]
[1722449886365,0.007,66537.0,66534.0,0.300597]
[1722449886572,0.007,66537.0,66535.0,0.0642]
[1722449886781,0.150287,66540.0,66535.0,0.214495]
[1722449886782,0.150285,66540.0,66535.0,0.214495]
[1722449887040,0.150283,66541.0,66536.0,0.150294]
[1722449887270,0.008,66538.0,66535.0,0.364793]
[1722449887476,0.008,66538.0,66537.0,0.450876]
[1722449888250,0.150274,66545.0,66538.0,0.300577]
[1722449888452,0.00083,66546.0,66540.0,0.150284]
[1722449888662,0.00083,66546.0,66539.0,0.150287]
[1722449888663,0.150276,66544.0,66539.0,0.150287]
[1722449889426,0.300564,66542.0,66536.0,0.231094]
[1722449889644,0.1503,66534.0,66530.0,0.1451]
[1722449889849,0.300586,66537.0,66532.0,0.150302]
[1722449889850,0.150293,66537.0,66532.0,0.150302]
[1722449890055,0.450883,66536.0,66535.0,0.001]
[1722449890472,0.47446156,66536.0,66530.0,0.1451]
[1722449890672,0.02357856,66536.0,66530.0,0.1451]
[1722449890890,0.02357856,66536.0,66530.0,0.1491]
[1722449891124,0.150305,66531.0,66530.0,0.004]
[1722449891334,0.02357856,66536.0,66527.0,0.150314]
[1722449891335,0.150304,66532.0,66527.0,0.150314]
[1722449891543,0.150305,66532.0,66526.0,0.150316]
[1722449891717,0.150305,66531.0,66530.0,0.002]
[1722449891956,0.150302,66533.0,66530.0,0.004]
[1722449892185,0.150304,66532.0,66530.0,0.002]
[1722449892388,0.150305,66531.0,66530.0,0.002]